[Event "European Women Blitz-ch 2024"]
[Site "Monaco"]
[Date "2025.01.10"]
[Round "13.10"]
[White "Osmak, Yuliia"]
[Black "Cramling, Pia"]
[Result "0-1"]
[Annotator "TA"]
[ECO "A00"]
[WhiteElo "2463"]
[BlackElo "2416"]
[PlyCount "96"]
[EventDate "2025.01.06"]
[EventType "swiss"]
[EventCountry "MNC"]
[SourceTitle "playchess.com"]
[Source "ChessBase"]
[SourceQuality "1"]
[TimeControl "180+2"]

{[%evp 20,96,-107,-114,-117,-108,-115,-122,-108,-117,-119,-100,-100,-287,-258,-273,-270,-479,-333,-272,-110,-110,-89,-89,-85,-105,-119,-227,-227,-244,-245,-222,-261,-471,-481,-1075,-1075,-749,-747,-5406,-1131,-1299,-29973,-6107,-6099,-29981,-837,-971,-906,-5798,-5737,-5293,-2331,-12804,-1541,-5193,-3267,-1545,0,-2031,-1933,-4929,0,-4929,-4140,-2587,-2200,-29945,-3002,-29975,-29976,-29974,-29975,-29978,-29979,-29989,-29981,-29984,-29984]} 1. b4 {[%emt 0:00:01]} d5 {[%emt 0:00:07]} 2. Bb2 {[%emt 0:00:01]} Bg4 {[%emt 0:00:03]} 3. h3 {[%emt 0:00:05]} Bh5 {[%emt 0:00:02]} 4. g4 {[%emt 0:00:05]} Bg6 {[%emt 0:00:01]} 5. Bg2 {[%emt 0:00:02]} e6 {[%emt 0:00:02]} 6. b5 {[%emt 0:00:02] A00: Irregular Openings.} a6 $146 {[%emt 0:00:03]} ({Predecessor:} 6... c6 7. bxc6 Nxc6 8. c3 Qb6 9. Qb3 Qc7 10. Nf3 Nf6 11. d3 Bc5 12. Nbd2 a6 {0-1 Tanacs,I-Rozsnyai,J (1834) HUN-chT2 Toth 1011 2010 (7.12)}) 7. c4 {[%emt 0:00:06]} axb5 {[%emt 0:00:09]} 8. cxb5 {[%emt 0:00:02]} h5 {[%emt 0:00:08]} 9. Nf3 {[%emt 0:00:09]} hxg4 {[%emt 0:00:02]} 10. hxg4 {[%emt 0:00:01]} Rxh1+ {[%emt 0:00:02]} 11. Bxh1 {[%emt 0:00:01]} Nd7 {[%emt 0:00:05]} 12. a4 {[%emt 0:00:06]} Ngf6 {[%emt 0:00:02]} 13. g5 {[%emt 0:00:27]} Ne4 {[%emt 0:00:03]} 14. d3 {[%emt 0:00:22]} Bb4+ {[%emt 0:00:09]} 15. Kf1 {[%emt 0:00:12]} Nxg5 {[%emt 0:00:02]} 16. Bxg7 $2 {[%emt 0:00:10] [#]} (16. Nbd2 $17) 16... Nxf3 $1 $19 {[%emt 0:00:14]} 17. Bxf3 {[%emt 0:00:02]} Qh4 {[%emt 0:00:11]} 18. Nd2 $2 {[%emt 0:00:18]} (18. Bc3) 18... Bh5 {[%emt 0:00:18]} 19. e3 {[%emt 0:00:22]} Bxd2 {[%emt 0:00:36]} (19... Bg6 $19 {and Black stays clearly on top.} 20. e4 f6) 20. Bxh5 $17 {[%emt 0:00:04]} Qh1+ {[%emt 0:00:11]} 21. Ke2 {[%emt 0:00:01]} Qxh5+ 22. Kxd2 Qf5 {[%emt 0:00:16]} 23. Qe2 {[%emt 0:00:13]} (23. Bc3 $17 {is a better defense.}) 23... f6 $19 {[%emt 0:00:02]} 24. Bh6 {[%emt 0:00:12]} Nc5 {[%emt 0:00:08]} 25. Kc2 {[%emt 0:00:09] [#]} e5 $1 {[%emt 0:00:11]} (25... Rxa4 26. Rxa4 Nxa4 27. f3) (25... Nxa4 26. Qe1) 26. f3 $2 {[%emt 0:00:32]} (26. a5) 26... Qg6 $19 {[%emt 0:00:05]} (26... Rxa4 27. Rxa4 Nxa4 28. Qg2 $17) (26... Nxa4 27. Qg2 Qh7 28. Qg4 Qxh6 29. Rxa4 Rxa4 30. Qxa4 Qxe3 31. b6+ Kd8 32. Qa3 $19) 27. Rh1 {[%emt 0:00:06]} (27. a5 $142) 27... Rxa4 $19 {[%emt 0:00:02]} 28. Kb1 {[%emt 0:00:04]} Rb4+ {[%emt 0:00:12]} 29. Ka2 {[%emt 0:00:01]} Nxd3 {[%emt 0:00:04]} (29... Qg8 $142 30. Ka1 Kd7 (30... Rxb5 $2 31. d4 $19)) 30. Qc2 {[%emt 0:00:01]} Rb2+ {[%emt 0:00:01]} 31. Qxb2 {[%emt 0:00:03]} Nxb2 {[%emt 0:00:33]} 32. Kxb2 {[%emt 0:00:00]} Qd3 {[%emt 0:00:00]} (32... Qg2+ $142 33. Kb3 Qxh1 34. Bg7 Qxf3 35. b6 Qxe3+ (35... cxb6 36. Bh6 d4 37. Kc2 dxe3 38. Kb2 Qe2+ 39. Kc3 Qd2+ 40. Kb3 Qd3+ 41. Ka4 e2 42. Bd2 Qxd2 43. Kb5 Qa5+ 44. Kc4 e1=Q 45. Kd3 Qac3#) 36. Kc2 cxb6 37. Kd1 d4 38. Bh6 Qxh6 39. Kc2 Qh2+ 40. Kb3 Qe2 41. Ka3 Qc2 42. Kb4 Qa2 43. Kb5 Qb3#) 33. Bg7 {[%emt 0:00:04]} Kf7 {[%emt 0:00:00]} 34. Bh8 {[%emt 0:00:02]} Qxb5+ {[%emt 0:00:00]} 35. Kc3 {[%emt 0:00:01]} Qc4+ {[%emt 0:00:00]} 36. Kd2 {[%emt 0:00:01]} Qb4+ {[%emt 0:00:00]} 37. Kc2 {[%emt 0:00:01]} Qa4+ {[%emt 0:00:00]} 38. Kb2 {[%emt 0:00:01]} Qb5+ {[%emt 0:00:00]} 39. Kc3 {[%emt 0:00:02]} Qc5+ {[%emt 0:00:00]} 40. Kd3 {[%emt 0:00:01]} Qc4+ {[%emt 0:00:00]} 41. Kd2 {[%emt 0:00:01]} d4 {[%emt 0:00:00]} 42. exd4 {[%emt 0:00:04]} Qxd4+ {[%emt 0:00:00]} 43. Ke2 {[%emt 0:00:01]} b5 {[%emt 0:00:00]} (43... e4 $142 44. Rh7+ Ke6 45. Bxf6 Kxf6 46. Rh6+ Kg5 47. Rh2 Qb2+ 48. Ke3 Qxh2 49. Kxe4 Qe2+ 50. Kd5 Kf5 (50... Qxf3+ {gets mated.} 51. Kc4 Kf5 52. Kb4 Ke4 53. Kc4 Qa3 54. Kb5 Qc3 55. Ka4 c5 56. Kb5 Qb4#) 51. Kc5 Qxf3 52. Kb4 Ke4 53. Kc4 Qa3 54. Kb5 Qc3 55. Ka4 c5 56. Kb5 Qb4#) 44. Rh6 {[%emt 0:00:05]} Qf4 {[%emt 0:00:02]} 45. Rh7+ {[%emt 0:00:01]} Kg8 {[%emt 0:00:01]} 46. Rh1 {[%emt 0:00:03]} b4 {[%emt 0:00:02]} 47. Kd3 {[%emt 0:00:04]} c5 {[%emt 0:00:02]} 48. Kc2 {[%emt 0:00:02]} c4 {[%emt 0:00:01]} 0-1

[Event "European Women Blitz-ch 2024"]
[Site "Monaco"]
[Date "2025.01.10"]
[Round "13.11"]
[White "Hunt, Harriet V"]
[Black "Cramling Bellon, Anna"]
[Result "1-0"]
[Annotator "TA"]
[ECO "B31"]
[WhiteElo "2298"]
[BlackElo "2052"]
[PlyCount "95"]
[EventDate "2025.01.06"]
[EventType "swiss"]
[EventCountry "MNC"]
[SourceTitle "playchess.com"]
[Source "ChessBase"]
[SourceQuality "1"]
[TimeControl "180+2"]

{[%evp 15,95,17,18,4,18,26,35,30,27,28,88,30,39,35,42,28,21,9,55,45,83,79,91,81,76,0,0,0,29,0,69,27,130,-47,0,-60,59,0,110,-7,-7,-18,-25,-458,307,306,311,309,368,358,358,354,451,-136,265,276,287,157,264,126,122,121,116,0,90,95,80,12,835,169,752,741,805,765,788,743,809,812,808,788,2317,2216]} 1. e4 {[%emt 0:00:01]} c5 {[%emt 0:00:01]} 2. Nf3 {[%emt 0:00:01]} Nc6 {[%emt 0:00:01]} 3. Bb5 {[%emt 0:00:02]} g6 {[%emt 0:00:01]} 4. Bxc6 {[%emt 0:00:02]} dxc6 {[%emt 0:00:03]} 5. d3 {[%emt 0:00:02]} Bg7 {[%emt 0:00:01]} 6. h3 {[%emt 0:00:01]} e5 {[%emt 0:00:03]} 7. Be3 {[%emt 0:00:03]} b6 {[%emt 0:00:02]} 8. Nc3 {[%emt 0:00:10]} Ne7 {[%emt 0:00:02]} 9. Qd2 {[%emt 0:00:03]} O-O {[%emt 0:00:08]} 10. Bh6 {[%emt 0:00:03]} Bxh6 {[%emt 0:00:29]} 11. Qxh6 {[%emt 0:00:02]} f6 {[%emt 0:00:01]} 12. h4 {[%emt 0:00:23]} Bg4 {[%emt 0:00:13]} (12... Kh8 $11) 13. Nh2 {[%emt 0:00:07] White is more active.} (13. h5 $1 $16 {[%cal Rh5g6]} gxh5 14. Nh4) 13... Be6 $11 {[%emt 0:00:33]} 14. f4 {[%emt 0:00:31]} exf4 {[%emt 0:00:33]} 15. Qxf4 {[%emt 0:00:02]} Qb8 {[%emt 0:00:01]} 16. Qe3 {[%emt 0:00:28]} Qd6 {[%emt 0:00:03]} (16... Qe5 $11 {deserves consideration.}) 17. O-O-O $14 {[%emt 0:00:08]} f5 {[%emt 0:00:06]} 18. Nf3 {[%emt 0:00:15]} f4 {[%emt 0:00:02]} 19. Qf2 {[%emt 0:00:08]} Bg4 {[%emt 0:00:08]} 20. e5 {[%emt 0:00:09]} (20. Rde1 $16) 20... Qe6 $11 {[%emt 0:00:04]} 21. Rde1 {[%emt 0:00:07]} h6 {[%emt 0:00:13] Prevents Ng5.} 22. Kb1 {[%emt 0:00:08]} Nf5 {[%emt 0:00:06]} ({Black should try} 22... Nd5 $11) 23. Nh2 {[%emt 0:00:16]} (23. Ne4 {is interesting.} Ne3 24. Nf6+ Kg7 25. Nh2) 23... Ne3 {[%emt 0:00:06]} (23... Ng3 $11) 24. Nxg4 $2 {[%emt 0:00:02]} (24. g3 $16) 24... Qxg4 {[%emt 0:00:10]} (24... Nxg4 $15 25. Qf1 Rf5 (25... Nxe5 26. Re4 $17)) 25. Ne4 {[%emt 0:00:09]} (25. g3 $11 Nd5 26. Nxd5 cxd5 27. gxf4 Rxf4 28. Qh2) 25... Kg7 {[%emt 0:00:01]} (25... Qxg2 $15 26. Qxg2 Nxg2) 26. Nf6 {[%emt 0:00:02]} (26. Rhg1 $14 Nd5 27. d4) 26... Qf5 {[%emt 0:00:06]} (26... Qxg2 $11 {keeps the balance.} 27. Qxf4 Qxc2+ 28. Ka1 Ng2) 27. Qf3 {[%emt 0:00:10]} (27. Rxe3 fxe3 28. Qxe3 Rxf6 29. exf6+ Qxf6 $11) (27. h5 $1 $16) 27... Rad8 $1 {[%emt 0:00:15][%cal Od8d3]} 28. Qxc6 {[%emt 0:00:02]} (28. Rxe3 $5 fxe3 29. Qxe3 $11) 28... Qxe5 {[%emt 0:00:02]} 29. Nd7 $2 {[%emt 0:00:06][%mdl 8192]} (29. Ng4 $1 $11 Qe7 (29... Nxg4 $2 30. Rxe5 Nxe5 31. Qc7+ Nf7 32. Qxf4 $18) 30. h5) 29... Qe7 $4 {[%emt 0:00:04][%mdl 8192]} (29... Qe8 $19 {avoids the disaster.} 30. Nb8 Rxb8) 30. Nxf8 $18 {[%emt 0:00:01]} Rxf8 {[%emt 0:00:07]} 31. h5 {[%emt 0:00:03]} Rf6 {[%emt 0:00:09]} 32. Qf3 {[%emt 0:00:02]} g5 {[%emt 0:00:03][%cal Bg6g5,Bg5g4][%mdl 32]} 33. g3 {[%emt 0:00:01]} g4 {[%emt 0:00:02]} 34. Qa8 $2 {[%emt 0:00:03]} (34. Qe2 $18) 34... fxg3 $2 {[%emt 0:00:03][%mdl 8192] [#]} (34... f3 $1 $17 {[%cal Rf3f2] and life is bright. ...f2 is the strong threat.} 35. Rhf1 Re6) 35. Rhg1 $1 {[%emt 0:00:05]} Rf3 {[%emt 0:00:05]} 36. Qc8 {[%emt 0:00:02]} ({Better is} 36. Qxf3 $18 gxf3 37. Rxg3+ Kh7 38. Rxf3) 36... Kh7 {[%emt 0:00:02]} (36... Qf7 $16 37. a4 Kh7 (37... Qxh5 $2 38. Rxg3 Rxg3 39. Qc7+ Kg6 40. Qxg3 $18) (37... g2 $2 38. Rxe3 Rxe3 39. Qxg4+ Kh8 40. Qxg2 $18)) 37. Qxg4 {[%emt 0:00:03]} (37. Qb8 $18 {and White stays clearly on top.}) 37... Nxg4 $16 {[%emt 0:00:03]} 38. Rxe7+ $18 {[%emt 0:00:01][%mdl 4096] Endgame KRR-KRN} Kg8 {[%emt 0:00:01]} 39. Re4 {[%emt 0:00:05]} ({Resist} 39. Rxa7 Ne3 $14) (39. Kc1 $16 {[%cal Oc1d1] Hoping for Kd1!.} Ne3 40. Re6 (40. Rxa7 Rf1+ 41. Rxf1 Nxf1 $11)) 39... Ne3 {[%emt 0:00:01] [#]} (39... Nf2 $1 $11 40. Ra4 Nh3 41. Rg4+ Kf7) 40. Kc1 $1 $16 {[%emt 0:00:02]} g2 {[%emt 0:00:02]} 41. Kd2 {[%emt 0:00:01]} (41. Rxe3 $1 $16 Rxe3 42. Rxg2+ Kf7 43. Rf2+ Ke7 44. Rh2) 41... Nf1+ $2 {[%emt 0:00:01][%mdl 8192]} (41... Rf1 $11 42. Rxg2+ Nxg2 43. Rg4+ Kh7 44. Rxg2 Rh1) 42. Kc3 $2 {[%emt 0:00:01]} (42. Ke2) 42... Rf2 $2 {[%emt 0:00:02]} (42... Ne3 43. Rxe3 Rxe3) 43. Rg4+ $18 {[%emt 0:00:01]} Kf8 {[%emt 0:00:09]} 44. R1xg2 {[%emt 0:00:01]} Rf7 {[%emt 0:00:00]} 45. Rg8+ {[%emt 0:00:02]} Ke7 {[%emt 0:00:00]} 46. Re2+ {[%emt 0:00:01]} Kd7 {[%emt 0:00:00]} 47. Rg6 {[%emt 0:00:18]} Nh2 {[%emt 0:00:08]} 48. Rxh2 {[%emt 0:00:00]} 1-0

[Event "European Women Blitz-ch 2024"]
[Site "Monaco"]
[Date "2025.01.10"]
[Round "13.12"]
[White "Gaponenko, Inna"]
[Black "Injac, Teodora"]
[Result "0-1"]
[Annotator "TA"]
[ECO "C56"]
[WhiteElo "2346"]
[BlackElo "2453"]
[PlyCount "80"]
[EventDate "2025.01.06"]
[EventType "swiss"]
[EventCountry "MNC"]
[SourceTitle "playchess.com"]
[Source "ChessBase"]
[SourceQuality "1"]
[TimeControl "180+2"]

{[%evp 25,80,-15,0,0,0,0,0,0,1,13,25,16,158,24,13,9,46,33,43,17,10,0,3,0,0,-843,-842,-863,-843,-870,-844,-912,-888,-29962,-1135,-29963,-5018,-6047,-5803,-10114,-5018,-29970,-6252,-5506,-5916,-29977,-29978,-29975,-5922,-29982,-29981,-29981,-29979,-29990,-29991,-29992,-29986]} 1. e4 {[%emt 0:03:04]} e5 {[%emt 0:00:00]} 2. Nf3 {[%emt 0:00:00]} Nc6 {[%emt 0:00:01]} 3. d4 {[%emt 0:00:00]} exd4 {[%emt 0:00:01]} 4. Bc4 {[%emt 0:00:00]} Nf6 {[%emt 0:00:01]} 5. e5 {[%emt 0:00:00]} Ne4 {[%emt 0:00:05]} 6. O-O {[%emt 0:00:00]} Be7 {[%emt 0:00:16]} 7. Qe2 {[%emt 0:00:00]} Nc5 {[%emt 0:00:06]} 8. Rd1 {[%emt 0:00:00]} Ne6 {[%emt 0:00:05]} 9. Bxe6 {[%emt 0:00:00]} fxe6 {[%emt 0:00:02]} 10. Nxd4 {[%emt 0:00:00]} Nxd4 {[%emt 0:00:07]} 11. Rxd4 {[%emt 0:00:00]} O-O {[%emt 0:00:01]} 12. Nc3 {[%emt 0:00:00]} b6 {[%emt 0:00:16]} 13. Be3 {[%emt 0:00:00]} Bb7 {[%emt 0:00:21]} 14. Rad1 {[%emt 0:00:00]} Bc6 {[%emt 0:00:01]} 15. b4 {[%emt 0:00:00]} a6 {[%emt 0:00:12]} 16. a4 {[%emt 0:00:00]} b5 {[%emt 0:00:08]} 17. axb5 {[%emt 0:00:00]} axb5 {[%emt 0:00:01]} 18. Nxb5 {[%emt 0:00:00]} Rb8 {[%emt 0:00:18]} (18... Qb8 $11 {keeps the balance.} 19. c4 Bxb4) 19. c4 {[%emt 0:00:00]} (19. Na7 $16 {Nxc6 would now be deadly.} Qe8 20. b5 (20. Nxc6 dxc6 21. Rd7 Bxb4 $18)) 19... Bxb4 $11 {[%emt 0:00:21]} 20. Rg4 {[%emt 0:00:00]} Qc8 {[%emt 0:01:06]} 21. Na7 {[%emt 0:00:00]} (21. Qd3 Be7 22. Na7 Qa6 23. Nxc6 Qxc6 24. h4) 21... Qb7 {[%emt 0:00:01]} 22. Nxc6 {[%emt 0:00:00]} (22. Qd3 Ra8 23. Nxc6 Qxc6 24. h3) 22... Qxc6 {[%emt 0:00:01]} 23. Rgd4 {[%emt 0:00:00]} (23. Qd3 {with more complications.} Bc5 24. h3 Rf7 25. Bxc5 Qxc5 26. Qd4) 23... Bc5 {[%emt 0:00:17]} 24. Rxd7 {[%emt 0:00:00]} Bxe3 {[%emt 0:00:00]} 25. Qxe3 $4 {[%emt 0:00:00][%mdl 8192] [#]} (25. fxe3 $11 Qc5 26. h3) 25... Qxd7 $1 $19 {[%emt 0:00:00]} 26. Re1 {[%emt 0:00:00]} Qf7 {[%emt 0:00:00]} 27. f3 {[%emt 0:00:00]} Rbd8 {[%emt 0:00:01]} 28. Qc5 {[%emt 0:00:00]} Rd7 {[%emt 0:00:02]} 29. Re2 {[%emt 0:00:00]} Rfd8 {[%emt 0:00:01]} (29... Rd1+ $142 30. Kf2 Qh5 31. Qe7 Re8 (31... Qxh2 $2 32. Qxe6+ Kh8 33. Qe7 $19) 32. Qc5 Qh4+ (32... Qxh2 $2 33. Qb4 $19) 33. Ke3 Red8 (33... Qxh2 $2 34. Qc6 $19) (33... Qg5+ $2 34. f4 $19) 34. g4 Qh6+ 35. Kf2 Qxh2+ 36. Ke3 R8d3+ 37. Ke4 Qxe2+ (37... Rd4+ 38. Qxd4 Qxe2+ 39. Kf4 Rxd4+ 40. Kg3 g5 41. c5 Rd3 42. Kh3 Rxf3#) 38. Kf4 Qxf3+ (38... Rxf3+ 39. Kg5 Qd2+ 40. Qe3 Qxe3+ 41. Kh5 Qh6#) 39. Kg5 h6+ 40. Kh5 Qh3+ 41. Kg6 Qxg4#) 30. Kf2 {[%emt 0:00:00]} h6 {[%emt 0:00:01]} (30... Qh5 $142 31. Kg3 Rd4 32. Qe7 Re8 33. Qxe8+ Qxe8 34. Kf2 Qh5 (34... Rxc4 $2 35. g3 $19) 35. Re4 Rxe4 (35... Rd2+ $2 36. Kg3 $19) 36. fxe4 Qxh2 (36... Qxe5 $2 37. h3 $19) 37. Ke3 Qxg2 (37... Qxe5 $2 38. g4 $19) 38. Kd3 Qf3+ 39. Kc2 h5 (39... Qxe4+ 40. Kc3 g5 41. c5 g4 42. Kb3 g3 43. Ka3 g2 44. Ka2 g1=Q 45. Kb3 Qgb1+ 46. Kc3 Qed3#) 40. c5 h4 (40... Qxe4+ 41. Kc3 h4 42. Kd2 h3 43. Kc3 h2 44. Kb2 h1=Q 45. Kb3 Qhb1+ 46. Kc3 Qed3#) 41. Kd2 h3 (41... Qxe4 42. Kc3 h3 43. Kd2 h2 44. c6 h1=Q 45. Kc3 Qc1+ 46. Kb3 Qec4#) 42. c6 h2 (42... Qxe4 43. Kc3 h2 44. Kd2 h1=Q 45. Kc3 Qc1+ 46. Kb3 Qec4#) 43. Kc2 h1=Q (43... h1=B 44. Kd2 Qb3 45. Ke2 Bxe4 46. Kf2 Qd3 47. Ke1 Qe3+ 48. Kf1 Qd2 49. Kg1 Qg2#) 44. Kb2 Qh2+ 45. Kc1 Qfh1#) 31. Qc6 {[%emt 0:00:00]} Qe7 {[%emt 0:00:02]} 32. g3 {[%emt 0:00:00]} Rd4 {[%emt 0:00:03]} 33. Ke3 {[%emt 0:00:00]} Rd3+ {[%emt 0:00:01]} (33... Qa3+ $142 34. Kf2 Rd2 35. Qxe6+ Kh8 36. Qe8+ Rxe8 37. Rxd2 Qc3 (37... Rxe5 $2 38. Re2 $19) 38. Re2 Qd4+ (38... Qxc4 $2 39. f4 $19) (38... Rxe5 $2 39. Rxe5 Qxe5 40. f4 $19) 39. Kf1 Qxc4 (39... Rxe5 $2 40. Rxe5 Qxe5 41. f4 $19) 40. Kf2 Ra8 41. f4 Qd5 42. e6 Ra3 43. Re3 Qc5 44. Kg2 Qxe3 (44... Rxe3 45. e7 Qd5+ 46. Kh3 Qh5+ 47. Kg2 Re2+ 48. Kf1 Qf3+ 49. Kg1 Qg2#) 45. Kh3 Qxe6+ 46. Kg2 Ra2+ 47. Kf1 Qe2+ 48. Kg1 Qg2#) 34. Kf2 $19 {[%emt 0:00:00]} Rd2 {[%emt 0:00:01]} 35. Rxd2 {[%emt 0:00:03]} Rxd2+ {[%emt 0:00:00]} 36. Ke3 {[%emt 0:00:01]} Qd7 {[%emt 0:00:01]} (36... Rxh2 $142 37. Kd4 Rd2+ 38. Ke3 Ra2 39. Kd4 Qd8+ 40. Kc5 Ra5+ 41. Qb5 Rxb5+ 42. Kxb5 Qd7+ 43. Kc5 g5 (43... Qe7+ $2 44. Kc6 $19) 44. f4 gxf4 (44... Qe7+ $2 45. Kd4 $19) 45. gxf4 h5 46. Kb4 h4 47. c5 h3 48. f5 h2 (48... exf5 {is a self mate.} 49. Kc3 h2 50. e6 Qxe6 51. Kd3 h1=Q 52. Kd2 Qa2+ 53. Kc3 Qf3+ 54. Kd4 Qad5#) 49. f6 h1=Q (49... h1=B 50. Kc3 Bc6 51. Kc2 Qd4 52. Kb3 Qd2 53. Ka3 Qc1+ 54. Kb3 Kf7 55. Kb4 Qb2+ 56. Kc4 Bb5#) 50. f7+ Kxf7 (50... Qxf7 51. Kb5 Qf4 52. c6 Qb1+ 53. Kc5 Qb6#) 51. Kc4 Qc1+ 52. Kb3 Qb5+ 53. Ka2 Qbc4#) 37. Qa8+ {[%emt 0:00:03]} Kh7 {[%emt 0:00:04]} 38. Qe4+ {[%emt 0:00:02]} g6 {[%emt 0:00:01]} 39. h4 {[%emt 0:00:05]} Rd1 {[%emt 0:00:02]} 40. Kf4 {[%emt 0:00:05]} Rd4 {[%emt 0:00:02]} 0-1

[Event "European Women Blitz-ch 2024"]
[Site "Monaco"]
[Date "2025.01.10"]
[Round "13.13"]
[White "Papp, Petra"]
[Black "Javakhishvili, Lela"]
[Result "1-0"]
[Annotator "TA"]
[ECO "A48"]
[WhiteElo "2235"]
[BlackElo "2426"]
[PlyCount "79"]
[EventDate "2025.01.06"]
[EventType "swiss"]
[EventCountry "MNC"]
[SourceTitle "playchess.com"]
[Source "ChessBase"]
[SourceQuality "1"]
[TimeControl "180+2"]

{[%evp 16,79,2,0,22,17,16,0,0,0,33,21,27,27,34,6,37,-13,47,25,27,-10,-7,-35,-40,-72,-73,-137,-39,-89,-87,-95,-86,-158,-101,-141,-134,-154,-177,-372,-365,-567,-531,-552,-557,-539,-452,-587,-591,-583,-591,-635,-312,-639,-613,-637,-635,-1158,-737,-1114,-1036,-2310,-1122,-1070,29998,29999]} 1. d4 {[%emt 0:00:02]} Nf6 {[%emt 0:00:01]} 2. Nf3 {[%emt 0:00:02]} b6 {[%emt 0:00:01]} 3. Bf4 {[%emt 0:00:02]} Bb7 {[%emt 0:00:02]} 4. e3 {[%emt 0:00:00]} g6 {[%emt 0:00:02]} 5. c3 {[%emt 0:00:16]} Bg7 {[%emt 0:00:02]} 6. h3 {[%emt 0:00:00]} O-O {[%emt 0:00:02]} 7. Nbd2 {[%emt 0:00:01]} d6 {[%emt 0:00:02]} 8. Bc4 {[%emt 0:00:03]} Nbd7 {[%emt 0:00:03]} 9. O-O {[%emt 0:00:02]} e6 {[%emt 0:00:02]} 10. a4 {[%emt 0:00:02]} a6 {[%emt 0:00:02]} 11. Bh2 {[%emt 0:00:03]} Qe7 {[%emt 0:00:03]} 12. Re1 {[%emt 0:00:04]} Ne4 {[%emt 0:00:10]} 13. Nxe4 {[%emt 0:00:07]} Bxe4 {[%emt 0:00:01]} 14. Nd2 {[%emt 0:00:01]} Bb7 {[%emt 0:00:02]} 15. e4 {[%emt 0:00:02]} c5 {[%emt 0:00:15]} 16. Nf1 {[%emt 0:00:14]} (16. d5 $14) 16... Rfc8 {[%emt 0:00:14]} (16... cxd4 $11 17. cxd4 Rfc8) 17. dxc5 {[%emt 0:00:25]} dxc5 {[%emt 0:00:01]} 18. Qb3 {[%emt 0:00:19]} Bc6 {[%emt 0:00:10]} 19. Rad1 {[%emt 0:00:08]} Ne5 {[%emt 0:00:16]} 20. Be2 {[%emt 0:00:20]} b5 {[%emt 0:00:16]} 21. f4 {[%emt 0:00:15]} (21. axb5 axb5 22. Qc2 (22. Bxb5 $2 c4 $19) 22... c4) (21. Qa3 $142) 21... bxa4 {[%emt 0:00:08]} (21... Nd7 $17 22. Qc2 (22. axb5 $2 axb5 23. Qc2 c4 $17) 22... c4 (22... bxa4 23. Ra1 $15)) 22. Qa3 {[%emt 0:00:01]} (22. Qc2 $15 Nd7 23. Ne3) 22... Nd7 $17 {[%emt 0:00:03]} 23. e5 {[%emt 0:00:04]} Nb6 {[%emt 0:00:17]} 24. Rd6 {[%emt 0:00:05]} (24. Ne3 $142) 24... Nd5 {[%emt 0:00:05]} ({Black should try} 24... Qb7 {And now ...Bf8 would win.} 25. Ne3 Rab8 26. Qxc5 Nd5 (26... Bxg2 27. Qa5 $17)) 25. c4 {[%emt 0:00:10]} Nb4 {[%emt 0:00:04]} 26. Red1 {[%emt 0:00:01] [#]} Nc2 $1 {[%emt 0:00:06]} 27. Qc3 $2 {[%emt 0:00:03]} (27. Qxc5 {was the only chance.} Bf8 28. Qf2) 27... Nd4 $19 {[%emt 0:00:02]} 28. R1xd4 {[%emt 0:00:02]} (28. Bd3 {keeps fighting.}) 28... cxd4 {[%emt 0:00:01]} 29. Qxd4 {[%emt 0:00:01]} Qb7 {[%emt 0:00:02][%cal Oa8b8]} 30. f5 {[%emt 0:00:32]} exf5 {[%emt 0:00:06][%cal Oa8b8]} 31. Qd2 {[%emt 0:00:03]} Rab8 {[%emt 0:00:13]} 32. e6 {[%emt 0:00:21]} Qxb2 {[%emt 0:00:15]} 33. exf7+ {[%emt 0:00:01]} Kf8 {[%emt 0:00:01]} (33... Kxf7 $142 34. Rxc6 Bd4+ (34... Rxc6 $2 35. Qd7+ Kf8 36. Qxc6 $19) 35. Kh1 Rxc6 36. Bxb8 Qxd2 37. Nxd2 a3) 34. Rxc6 $2 {[%emt 0:00:12]} (34. Qe3) 34... Bd4+ {[%emt 0:00:32]} 35. Kh1 {[%emt 0:00:03]} Rxc6 {[%emt 0:00:03]} 36. Qh6+ {[%emt 0:00:02]} Bg7 {[%emt 0:00:03]} 37. Qf4 {[%emt 0:00:01]} Rbc8 {[%emt 0:00:05]} 38. c5 {[%emt 0:00:01]} a3 {[%emt 0:00:03]} 39. Bc4 {[%emt 0:00:01]} a2 $4 {[%emt 0:00:02][%mdl 8192] [#]} ({Stronger than} 39... Rxc5 40. Qd6#) (39... Qd4 $19 40. Bb3 Qxf4 (40... Rxc5 41. Qd6+ Qxd6 42. Bxd6#) (40... Qxc5 $2 41. Qh4 $19) (40... a2 $2 41. Bxa2 Qxf4 42. Bxf4 $19) 41. Bxf4 Rd8 (41... Rxc5 42. Bd6#)) 40. Qd6+ $3 {[%emt 0:00:01][%mdl 512]} 1-0